[Event "Karpov Trophy XVI 2018"]
[Site "Cap d/^Agde"]
[Date "2018.10.30"]
[Round "5"]
[White "Molano, Juan Pablo"]
[Black "Gautier, Anand"]
[Result "0-1"]
[ECO "A02"]
[WhiteElo "2142"]
[BlackElo "2254"]
[Annotator "ChessBase"]
[PlyCount "106"]
[EventDate "2018.10.27"]
[EventCountry "FRA"]
[SourceTitle "playchess.com"]
[Source "ChessBase"]
[SourceQuality "1"]
[TimeControl "5400+30"]

1. f4 {[%emt 0:06:17]} Nf6 {[%emt 0:00:53]} 2. Nf3 {[%emt 0:00:02]} c5 {[%emt 0:00:21]} 3. d3 {[%emt 0:00:07]} d5 {[%emt 0:02:06]} 4. g3 {[%emt 0:00:07]} g6 {[%emt 0:02:19]} 5. Bg2 {[%emt 0:00:02]} Bg7 {[%emt 0:00:54]} 6. c3 {[%emt 0:00:04]} O-O {[%emt 0:02:57]} 7. O-O {[%emt 0:00:04]} Nc6 {[%emt 0:04:20]} 8. Na3 {[%emt 0:00:03]} d4 {[%emt 0:05:13]} 9. Bd2 {[%emt 0:02:20]} Nd5 {[%emt 0:02:13]} 10. Qc1 {[%emt 0:01:51]} Bg4 {[%emt 0:13:52]} 11. e4 {[%emt 0:10:00]} Nb6 {[%emt 0:08:05]} 12. c4 {[%emt 0:00:35]} Qd7 {[%emt 0:01:40]} 13. Nc2 {[%emt 0:07:25]} a5 {[%emt 0:01:07]} 14. a4 {[%emt 0:00:17]} e5 {[%emt 0:02:57]} 15. b3 {[%emt 0:01:20]} f5 {[%emt 0:04:37]} 16. Nfe1 {[%emt 0:29:16]} fxe4 {[%emt 0:05:57]} 17. Bxe4 {[%emt 0:00:11]} Nc8 {[%emt 0:02:55]} 18. Nf3 {[%emt 0:06:03]} Nd6 {[%emt 0:04:48]} 19. Bd5+ {[%emt 0:05:42]} Kh8 {[%emt 0:01:02]} 20. Nce1 {[%emt 0:06:52]} Rae8 {[%emt 0:05:00]} 21. fxe5 {[%emt 0:11:36]} Nxe5 {[%emt 0:04:32]} 22. Nxe5 {[%emt 0:00:30]} Rxf1+ {[%emt 0:00:30]} 23. Kxf1 {[%emt 0:00:30]} Bxe5 {[%emt 0:00:30]} 24. Kg1 {[%emt 0:00:30]} Nf5 {[%emt 0:00:30]} 25. Nf3 {[%emt 0:00:30]} Bg7 {[%emt 0:00:30]} 26. Ng5 {[%emt 0:00:30]} h6 {[%emt 0:00:30]} 27. Ne4 {[%emt 0:00:30]} Ne3 {[%emt 0:00:30]} 28. Nxc5 {[%emt 0:00:30]} Qf5 {[%emt 0:00:30]} 29. Ne4 {[%emt 0:00:30]} Rf8 {[%emt 0:00:30]} 30. Bxe3 {[%emt 0:00:30]} dxe3 {[%emt 0:00:30]} 31. Qxe3 {[%emt 0:00:30]} Bh3 {[%emt 0:00:30]} 32. Nf2 {[%emt 0:00:30]} Qxf2+ {[%emt 0:00:30]} 33. Qxf2 {[%emt 0:00:30]} Rxf2 {[%emt 0:00:30]} 34. Kxf2 {[%emt 0:00:30]} Bxa1 {[%emt 0:00:30]} 35. Bxb7 {[%emt 0:00:30]} Bd4+ {[%emt 0:00:30]} 36. Kf3 {[%emt 0:00:30]} Bf5 {[%emt 0:00:30]} 37. Be4 {[%emt 0:00:30]} Kg7 {[%emt 0:00:30]} 38. g4 {[%emt 0:00:30]} Be6 {[%emt 0:00:30]} 39. Bc6 {[%emt 0:00:30]} Kf6 {[%emt 0:00:30]} 40. Ke4 {[%emt 0:00:30]} Bg1 {[%emt 0:00:30]} 41. h3 {[%emt 0:00:30]} h5 {[%emt 0:00:30]} 42. Bd5 {[%emt 0:00:30]} Bd7 {[%emt 0:00:30]} 43. gxh5 {[%emt 0:00:30]} gxh5 {[%emt 0:00:30]} 44. d4 {[%emt 0:00:30]} Bf5+ {[%emt 0:00:30]} 45. Kf4 {[%emt 0:00:30]} Bxd4 {[%emt 0:00:30]} 46. Bf3 {[%emt 0:00:30]} h4 {[%emt 0:00:30]} 47. Bg4 {[%emt 0:00:30]} Be5+ {[%emt 0:00:30]} 48. Kf3 {[%emt 0:00:30]} Bc2 {[%emt 0:00:30]} 49. Bd7 {[%emt 0:00:30]} Bxb3 {[%emt 0:00:30]} 50. Bb5 {[%emt 0:00:30]} Bg3 {[%emt 0:00:30]} 51. Ke4 {[%emt 0:00:30]} Ke6 {[%emt 0:00:30]} 52. c5 {[%emt 0:00:30]} Bd5+ {[%emt 0:00:30]} 53. Ke3 {[%emt 0:00:30]} Bg2 {[%emt 0:00:30]} 0-1

[Event "Karpov Trophy XVI 2018"]
[Site "Cap d/^Agde"]
[Date "2018.10.31"]
[Round "6"]
[White "Rambaut, Anthony"]
[Black "Jehan, Julien"]
[Result "0-1"]
[ECO "E04"]
[WhiteElo "1850"]
[BlackElo "1991"]
[Annotator "NA RC"]
[PlyCount "62"]
[EventDate "2018.10.27"]
[EventCountry "FRA"]
[SourceTitle "playchess.com"]
[Source "ChessBase"]
[SourceQuality "1"]
[TimeControl "5400+30"]

{[%evp 8,55,14,17,44,0,0,20,4,15,0,10,12,-29,0,43,52,-19,0,-51,-78,-111,-112,-115,-116,-182,-200,-207,-26,-19,172,-219,-198,-237,-149,-148,-140,-194,-210,-243,-229,-214,-216,-195,-218,-193,-31,-268,-235,-308]} 1. Nf3 {[%emt 0:00:00]} Nf6 {[%emt 0:00:00]} 2. c4 {[%emt 0:00:05]} e6 {[%emt 0:00:32]} 3. d4 {[%emt 0:00:25]} d5 {[%emt 0:01:00]} 4. g3 {[%emt 0:00:42]} dxc4 {[%emt 0:00:30]} 5. Bg2 {[%emt 0:02:40]} Nbd7 {[%emt 0:00:41]} 6. Qc2 {[%emt 0:04:11] E04: Katalanisch} (6. O-O a6 7. a4 Rb8 8. a5 Bd6 9. Nbd2 b5 10. axb6 Nxb6 11. Nxc4 Nxc4 12. Qa4+ Rb5 13. Qxc4 O-O 14. Rd1 {½-½ (30) Eljanov,P (2700)-Adly,A (2626) Sharjah 2018}) 6... Rb8 {[%emt 0:04:52]} 7. O-O b5 {[%emt 0:03:44] LiveBook: 8 Games} 8. Ne5 {[%emt 0:11:48]} Nxe5 {[%emt 0:04:36]} 9. dxe5 {[%emt 0:00:17]} Nd7 {[%emt 0:07:36]} 10. Bc6 {[%emt 0:03:44]} Rb6 $146 {[%emt 0:05:31]} ({Vorgänger:} 10... Bb7 11. Bxb5 c6 12. Bxc4 Nxe5 13. Bf4 Bd6 14. Rd1 Qe7 {1-0 (30) Rogers,I (2355)-Peters,J (2460) Los Angeles,CA 1982}) 11. Qe4 {[%emt 0:03:53]} Bc5 {[%emt 0:05:37]} 12. Nc3 {[%emt 0:08:14]} (12. a4 $1 $14) 12... a6 {[%emt 0:03:49]} 13. a4 {[%emt 0:05:29]} (13. Bxd7+ $5 Bxd7 14. Qg4 $11) 13... b4 {[%emt 0:04:50]} 14. a5 {[%emt 0:00:50]} (14. Bxd7+ $11 Bxd7 15. Nd1) 14... Rxc6 $1 {[%emt 0:06:14]} 15. Qxc6 {[%emt 0:00:07]} bxc3 {[%emt 0:00:34]} 16. bxc3 {[%emt 0:00:26]} (16. Ra4 $17) 16... O-O {[%emt 0:04:42]} 17. Ra2 {[%emt 0:09:07]} Ba7 $2 {[%emt 0:03:55]} (17... Be7 $19 18. Qe4 Nc5 19. Qxc4 Bb7) 18. Ba3 {[%emt 0:04:10]} Nb8 $2 {[%emt 0:10:09]} (18... Nxe5 $11 19. Qa8 {[#]} Bxf2+ $1 {[%mdl 512]} 20. Rxf2 Re8) 19. Qxc4 $2 {[%emt 0:02:20] [#]} (19. Qa8 $16 Re8 20. Qxa7) 19... c5 $1 {[%emt 0:02:33]} 20. Bc1 {[%emt 0:09:24]} Qd5 {[%emt 0:05:11]} 21. Qxd5 {[%emt 0:01:29]} exd5 {[%emt 0:00:01]} 22. Bf4 {[%emt 0:05:16]} Nc6 {[%emt 0:04:00]} 23. e3 {[%emt 0:03:08]} Bf5 {[%emt 0:02:11]} 24. Rb2 {[%emt 0:01:42]} Rb8 {[%emt 0:01:20]} ({Don't do} 24... Nxa5 25. Ra1) 25. Rxb8+ {[%emt 0:01:58]} Bxb8 {[%emt 0:00:01]} ({Weaker is} 25... Nxb8 26. Rd1 $15) 26. Rd1 {[%emt 0:04:53]} h6 $2 {[%emt 0:07:34]} ({Not} 26... Nxa5 27. e6 $16) (26... Be6 $19 27. f3 h6) 27. h4 $2 {[%emt 0:07:13]} (27. Rxd5 $15 Be4 28. Rd7) 27... Be4 $19 {[%emt 0:00:46]} ({Inferior is} 27... Nxa5 28. e6 $16) 28. Rd2 {[%emt 0:00:49]} Bc7 {[%emt 0:01:51]} 29. e6 {[%emt 0:08:19]} Bxa5 {[%emt 0:01:45]} 30. e7 {[%emt 0:00:54]} Nxe7 {[%emt 0:00:11]} 31. Ra2 {[%emt 0:00:29]} Nc6 {[%emt 0:00:31]} 0-1

[Event "Karpov Trophy XVI 2018"]
[Site "Cap d/^Agde"]
[Date "2018.11.01"]
[Round "7"]
[White "Jehan, Julien"]
[Black "Gautier, Anand"]
[Result "1-0"]
[ECO "D31"]
[WhiteElo "1991"]
[BlackElo "2254"]
[Annotator "NA"]
[PlyCount "79"]
[EventDate "2018.10.27"]
[EventCountry "FRA"]
[SourceTitle "playchess.com"]
[Source "ChessBase"]
[SourceQuality "1"]
[TimeControl "5400+30"]

1. d4 {[%emt 0:00:00]} d5 {[%emt 0:00:00]} 2. Nf3 {[%emt 0:00:01]} e6 {[%emt 0:00:00]} 3. c4 {[%emt 0:02:47]} c6 {[%emt 0:00:01]} 4. Nc3 {[%emt 0:03:41]} dxc4 {[%emt 0:00:14]} 5. a4 {[%emt 0:01:43]} Bb4 {[%emt 0:00:21]} 6. e4 {[%emt 0:03:14]} Nf6 {[%emt 0:05:54]} 7. Qc2 {[%emt 0:02:54]} b5 {[%emt 0:13:55]} 8. Be2 {[%emt 0:01:57]} Nbd7 {[%emt 0:02:58]} 9. g4 {[%emt 0:12:10]} h6 {[%emt 0:09:23]} 10. Rg1 {[%emt 0:02:33]} (10. Kf1 $11 {keeps the balance.}) 10... c5 {[%emt 0:13:33]} 11. g5 {[%emt 0:08:25]} (11. axb5 $11 {remains equal.} Bb7 12. Kf1) 11... hxg5 {[%emt 0:12:54]} 12. Bxg5 {[%emt 0:03:49] [#]} Qa5 {[%emt 0:02:38]} (12... Bb7 $1 $17 13. d5 exd5 14. exd5 Qa5) 13. Bd2 {[%emt 0:02:47]} Bb7 {[%emt 0:05:35]} 14. e5 $1 {[%emt 0:07:42]} Bxc3 $11 {[%emt 0:12:42]} 15. Qxc3 {[%emt 0:11:33]} Qxc3 {[%emt 0:01:08]} 16. Bxc3 {[%emt 0:01:20]} Nd5 {[%emt 0:01:27]} 17. axb5 {[%emt 0:00:55]} g6 {[%emt 0:01:55]} 18. Nd2 {[%emt 0:03:33]} cxd4 {[%emt 0:02:57]} 19. Bxd4 {[%emt 0:00:36]} Rh4 {[%emt 0:02:01]} 20. Rg4 {[%emt 0:04:42]} Rxg4 {[%emt 0:02:47]} 21. Bxg4 {[%emt 0:00:01]} N5b6 {[%emt 0:01:02]} 22. Be2 {[%emt 0:06:04]} Bd5 {[%emt 0:00:08]} 23. Kd1 {[%emt 0:00:41]} Ke7 {[%emt 0:04:14]} 24. Kc2 {[%emt 0:00:13]} f6 {[%emt 0:02:17]} 25. f4 {[%emt 0:01:48]} fxe5 {[%emt 0:00:12]} 26. fxe5 {[%emt 0:00:26]} Rh8 {[%emt 0:00:38]} 27. Nf1 {[%emt 0:07:29]} Rh4 {[%emt 0:01:13]} 28. Bf2 {[%emt 0:00:12]} Re4 {[%emt 0:00:23]} 29. Ng3 {[%emt 0:01:02]} Rxe5 {[%emt 0:00:39]} 30. Rxa7 {[%emt 0:00:01]} Nc8 {[%emt 0:00:33]} 31. Ra4 {[%emt 0:02:24]} Nd6 {[%emt 0:00:37]} 32. b6 {[%emt 0:02:05]} Nf5 {[%emt 0:01:01]} 33. Kd2 {[%emt 0:01:30]} Nxg3 {[%emt 0:00:35]} 34. Bxg3 {[%emt 0:01:04]} Rf5 {[%emt 0:00:29]} 35. Ra7 {[%emt 0:00:44]} Rf8 {[%emt 0:00:22]} 36. b7 {[%emt 0:01:39]} Kf6 {[%emt 0:00:24]} 37. Kc3 {[%emt 0:01:21]} e5 {[%emt 0:00:44]} 38. Bg4 {[%emt 0:00:32]} Nb8 {[%emt 0:00:34]} 39. Bc8 {[%emt 0:00:41]} Nc6 {[%emt 0:00:30]} 40. Ra6 {[%emt 0:00:32]} 1-0

[Event "Karpov Trophy XVI 2018"]
[Site "Cap d/^Agde"]
[Date "2018.11.01"]
[Round "7"]
[White "Jehan, Julien"]
[Black "Gautier, Nathan"]
[Result "1-0"]
[ECO "D31"]
[WhiteElo "1991"]
[BlackElo "1933"]
[Annotator "NA RC"]
[PlyCount "79"]
[EventDate "2018.10.27"]
[EventCountry "FRA"]
[SourceTitle "playchess.com"]
[Source "ChessBase"]
[SourceQuality "1"]
[TimeControl "5400+30"]

1. d4 {[%emt 0:00:00]} d5 {[%emt 0:00:00]} 2. Nf3 {[%emt 0:00:01]} e6 {[%emt 0:00:00]} 3. c4 {[%emt 0:02:47]} c6 {[%emt 0:00:01]} 4. Nc3 {[%emt 0:03:41]} dxc4 {[%emt 0:00:14]} 5. a4 {[%emt 0:01:43]} Bb4 {[%emt 0:00:21]} 6. e4 {[%emt 0:03:14]} Nf6 {[%emt 0:05:54]} 7. Qc2 {[%emt 0:02:54]} b5 {[%emt 0:13:55]} 8. Be2 {[%emt 0:01:57]} Nbd7 {[%emt 0:02:58]} 9. g4 {[%emt 0:12:10]} h6 {[%emt 0:09:23]} 10. Rg1 {[%emt 0:02:33]} c5 {[%emt 0:13:33]} 11. g5 {[%emt 0:08:25]} hxg5 {[%emt 0:12:54]} 12. Bxg5 {[%emt 0:03:49]} Qa5 {[%emt 0:02:38]} 13. Bd2 {[%emt 0:02:47]} Bb7 {[%emt 0:05:35]} 14. e5 {[%emt 0:07:42]} Bxc3 {[%emt 0:12:42]} 15. Qxc3 {[%emt 0:11:33]} Qxc3 {[%emt 0:01:08]} 16. Bxc3 {[%emt 0:01:20]} Nd5 {[%emt 0:01:27]} 17. axb5 {[%emt 0:00:55]} g6 {[%emt 0:01:55]} 18. Nd2 {[%emt 0:03:33]} cxd4 {[%emt 0:02:57]} 19. Bxd4 {[%emt 0:00:36]} Rh4 {[%emt 0:02:01]} 20. Rg4 {[%emt 0:04:42]} Rxg4 {[%emt 0:02:47]} 21. Bxg4 {[%emt 0:00:01]} N5b6 {[%emt 0:01:02]} 22. Be2 {[%emt 0:06:04]} Bd5 {[%emt 0:00:08]} 23. Kd1 {[%emt 0:00:41]} Ke7 {[%emt 0:04:14]} 24. Kc2 {[%emt 0:00:13]} f6 {[%emt 0:02:17]} 25. f4 {[%emt 0:01:48]} fxe5 {[%emt 0:00:12]} 26. fxe5 {[%emt 0:00:26]} Rh8 {[%emt 0:00:38]} 27. Nf1 {[%emt 0:07:29]} Rh4 {[%emt 0:01:13]} 28. Bf2 {[%emt 0:00:12]} Re4 {[%emt 0:00:23]} 29. Ng3 {[%emt 0:01:02]} Rxe5 {[%emt 0:00:39]} 30. Rxa7 {[%emt 0:00:01]} Nc8 {[%emt 0:00:33]} 31. Ra4 {[%emt 0:02:24]} Nd6 {[%emt 0:00:37]} 32. b6 {[%emt 0:02:05]} Nf5 {[%emt 0:01:01]} 33. Kd2 {[%emt 0:01:30]} Nxg3 {[%emt 0:00:35]} 34. Bxg3 {[%emt 0:01:04]} Rf5 {[%emt 0:00:29]} 35. Ra7 {[%emt 0:00:44]} Rf8 {[%emt 0:00:22]} 36. b7 {[%emt 0:01:39]} Kf6 {[%emt 0:00:24]} 37. Kc3 {[%emt 0:01:21]} e5 {[%emt 0:00:44]} 38. Bg4 {[%emt 0:00:32]} Nb8 {[%emt 0:00:34]} 39. Bc8 {[%emt 0:00:41]} Nc6 {[%emt 0:00:30]} 40. Ra6 {[%emt 0:00:32]} 1-0

[Event "Karpov Trophy XVI 2018"]
[Site "Cap d/^Agde"]
[Date "2018.11.01"]
[Round "7"]
[White "Gattegno, Laurent"]
[Black "Carrillo, Jesus"]
[Result "0-1"]
[ECO "E73"]
[WhiteElo "1934"]
[BlackElo "1967"]
[Annotator "NA RC"]
[PlyCount "68"]
[EventDate "2018.10.27"]
[EventCountry "FRA"]
[SourceTitle "playchess.com"]
[Source "ChessBase"]
[SourceQuality "1"]
[TimeControl "5400+30"]

1. d4 {[%emt 0:00:00]} Nf6 {[%emt 0:00:00]} 2. c4 {[%emt 0:00:00]} g6 {[%emt 0:00:00]} 3. Nc3 {[%emt 0:00:00]} Bg7 {[%emt 0:00:00]} 4. e4 {[%emt 0:00:00]} d6 {[%emt 0:00:04]} 5. Be2 {[%emt 0:00:01]} O-O {[%emt 0:00:12]} 6. h3 {[%emt 0:00:19]} e5 {[%emt 0:01:08]} 7. Be3 {[%emt 0:01:02]} exd4 {[%emt 0:03:48]} 8. Bxd4 {[%emt 0:00:23]} Nc6 {[%emt 0:00:35]} 9. Be3 {[%emt 0:00:07]} Re8 {[%emt 0:00:34]} 10. Qc2 {[%emt 0:02:20]} Nb4 {[%emt 0:07:34]} 11. Qd2 {[%emt 0:01:37]} a5 {[%emt 0:02:47]} 12. a3 {[%emt 0:05:36]} Na6 {[%emt 0:01:11]} 13. f3 {[%emt 0:01:51]} Nh5 {[%emt 0:09:52]} 14. g4 {[%emt 0:05:42]} Ng3 {[%emt 0:00:55]} 15. Rh2 {[%emt 0:01:53]} Nxe2 {[%emt 0:00:29]} 16. Ngxe2 {[%emt 0:00:55]} Be6 {[%emt 0:05:58]} 17. Nd5 {[%emt 0:10:28]} Nc5 {[%emt 0:06:04]} 18. Qc2 {[%emt 0:02:06]} Be5 {[%emt 0:32:48]} 19. Ndf4 {[%emt 0:05:13]} Qh4+ {[%emt 0:03:00]} 20. Rf2 {[%emt 0:03:02]} Bd7 {[%emt 0:03:25]} 21. Nc3 {[%emt 0:03:22]} Bxf4 {[%emt 0:10:56]} 22. Bxf4 {[%emt 0:04:01]} f5 {[%emt 0:01:08]} 23. O-O-O {[%emt 0:03:11]} fxe4 {[%emt 0:00:10]} 24. Nxe4 {[%emt 0:19:41]} Ba4 {[%emt 0:00:41]} 25. b3 {[%emt 0:04:49]} Bxb3 {[%emt 0:00:24]} 26. Qd2 {[%emt 0:00:24]} Nxe4 {[%emt 0:01:36]} 27. fxe4 {[%emt 0:00:45]} Bxc4 {[%emt 0:04:34]} 28. Re1 {[%emt 0:05:12]} b5 {[%emt 0:01:06]} 29. Bg5 {[%emt 0:00:28]} Qxh3 {[%emt 0:00:16]} 30. Qb2 {[%emt 0:00:17]} Rf8 {[%emt 0:01:28]} 31. Rh2 {[%emt 0:02:58]} Qxg4 {[%emt 0:00:14]} 32. Bh6 {[%emt 0:02:11]} Rf7 {[%emt 0:00:23]} 33. Rf2 {[%emt 0:02:13]} Qh4 {[%emt 0:01:00]} 34. Be3 {[%emt 0:04:54]} Raf8 0-1

[Event "Karpov Trophy XVI 2018"]
[Site "Cap d/^Agde"]
[Date "2018.11.02"]
[Round "8"]
[White "Gautier, Anand"]
[Black "Dauphin, Thomas"]
[Result "1-0"]
[ECO "C18"]
[WhiteElo "2254"]
[BlackElo "1986"]
[Annotator "NA"]
[PlyCount "63"]
[EventDate "2018.10.27"]
[EventCountry "FRA"]
[SourceTitle "playchess.com"]
[Source "ChessBase"]
[SourceQuality "1"]
[TimeControl "5400+30"]

1. e4 {[%emt 0:00:00]} e6 {[%emt 0:00:00]} 2. d4 {[%emt 0:00:00]} d5 {[%emt 0:00:03]} 3. Nc3 {[%emt 0:00:00]} Bb4 {[%emt 0:01:07]} 4. e5 {[%emt 0:00:00]} c5 {[%emt 0:00:06]} 5. a3 {[%emt 0:00:04]} Bxc3+ {[%emt 0:01:07]} 6. bxc3 {[%emt 0:00:05]} Ne7 {[%emt 0:00:56]} 7. Qg4 {[%emt 0:00:51]} cxd4 {[%emt 0:01:27]} 8. cxd4 {[%emt 0:02:52]} Qc7 {[%emt 0:00:11]} 9. Bd2 {[%emt 0:01:49]} Qxc2 {[%emt 0:00:16] C18: French: 3 Nc3 Bb4: Main line: 7 h4 and 7 Qg4} 10. Rc1 {[%emt 0:04:14] LiveBook: 8 Games} (10. Ne2 Nbc6 11. Qxg7 Rg8 12. Qf6 Bd7 13. h4 Nxd4 14. Nxd4 Qb2 15. Rc1 Qxd4 16. Bg5 Ng6 17. Be2 Qxe5 18. Qxe5 Nxe5 {0-1 (47) Hansen,M (2393)-Ivanov,S (2539) Sweden 2018}) 10... Qe4+ {[%emt 0:01:44]} 11. Qxe4 {[%emt 0:00:53]} dxe4 {[%emt 0:00:03]} 12. Ne2 {[%emt 0:03:38]} Nbc6 {[%emt 0:06:43]} 13. g4 {[%emt 0:10:11]} b6 $146 {[%emt 0:14:35]} ({Predecessor:} 13... h5 14. g5 Nf5 15. Bg2 Nfxd4 16. Nxd4 Nxd4 17. Bxe4 {1-0 (60) Korbut,E (2330)-Manakova,M (2395) Warsaw 2001}) 14. Bg2 {[%emt 0:03:43]} Ba6 {[%emt 0:00:27]} 15. Bxe4 {[%emt 0:12:19]} Rc8 {[%emt 0:00:46]} 16. Bb4 {[%emt 0:09:15]} Kd7 {[%emt 0:17:22]} 17. Kd2 {[%emt 0:06:08]} Rhd8 {[%emt 0:07:55]} 18. Rhd1 {[%emt 0:13:31]} Nxb4 {[%emt 0:08:44]} 19. axb4 {[%emt 0:00:56]} Bc4 {[%emt 0:06:56]} 20. Nf4 {[%emt 0:05:03]} Bd5 {[%emt 0:07:53]} 21. Nxd5 {[%emt 0:02:18]} Nxd5 {[%emt 0:02:35]} 22. Bxd5 {[%emt 0:02:48]} exd5 {[%emt 0:00:15]} 23. b5 {[%emt 0:01:56]} Ke6 {[%emt 0:04:03]} 24. f4 {[%emt 0:00:44]} g6 {[%emt 0:00:03]} 25. Ke3 {[%emt 0:04:10]} Rf8 {[%emt 0:04:33]} 26. h4 {[%emt 0:02:58]} Kd7 $18 {[%emt 0:01:38]} (26... h5 $16 {is a better defense.}) 27. Kd2 {[%emt 0:02:18]} (27. Rxc8 $18 Rxc8 28. Ra1) 27... Rh8 {[%emt 0:04:48]} 28. Rf1 {[%emt 0:07:15]} Ke7 {[%emt 0:01:09]} 29. Ke3 {[%emt 0:02:59]} Kd7 {[%emt 0:00:12]} 30. f5 {[%emt 0:00:33]} Rxc1 {[%emt 0:00:44]} 31. Rxc1 {[%emt 0:00:12]} Rc8 {[%emt 0:00:01]} 32. e6+ {[%emt 0:00:30]} 1-0

[Event "Karpov Trophy XVI 2018"]
[Site "Cap d/^Agde"]
[Date "2018.11.02"]
[Round "8"]
[White "Carrillo, Jesus"]
[Black "Jehan, Julien"]
[Result "0-1"]
[ECO "B13"]
[WhiteElo "1967"]
[BlackElo "1991"]
[Annotator "NA RC"]
[PlyCount "72"]
[EventDate "2018.10.27"]
[EventCountry "FRA"]
[SourceTitle "playchess.com"]
[Source "ChessBase"]
[SourceQuality "1"]
[TimeControl "5400+30"]

{[%evp 8,72,10,30,6,21,33,33,21,7,4,0,0,1,0,-13,-18,-9,-12,-37,-12,-13,-16,-19,-8,0,-12,-18,-11,-7,-6,-14,0,-42,-27,-35,-32,-152,-185,-185,-195,-197,-191,-256,-291,-207,-300,-221,-287,-231,-256,-364,-296,-288,-269,-255,-262,-495,-533,-445,-165,-181,-228,-153,-187,-1264,-1434]} 1. e4 {[%emt 0:00:15]} c6 {[%emt 0:00:00]} 2. d4 {[%emt 0:07:55]} d5 {[%emt 0:01:07]} 3. exd5 {[%emt 0:01:52]} cxd5 {[%emt 0:00:09]} 4. Bd3 {[%emt 0:00:49]} Nc6 {[%emt 0:00:54]} 5. c3 {[%emt 0:00:14]} Qc7 {[%emt 0:00:39]} 6. h3 {[%emt 0:00:29]} e5 {[%emt 0:00:39] B13: Caro-Kann: Exchange Variation and Panov-Botvinnik Attack} 7. dxe5 {[%emt 0:01:26]} Nxe5 {[%emt 0:00:44] LiveBook: 4 Games} 8. Qe2 {[%emt 0:04:34]} (8. Nf3 Bd6 9. Nxe5 Bxe5 10. O-O Nf6 11. Nd2 O-O 12. Nf3 Bd6 13. Re1 h6 14. Nd4 {0-1 (82) Malakhov,V (2686)-Howell,D (2676) Riadh 2017}) 8... Be7 {[%emt 0:03:49]} 9. Bb5+ {[%emt 0:02:36]} Nc6 {[%emt 0:05:35]} 10. Nf3 {[%emt 0:00:44]} Nf6 {[%emt 0:02:51]} 11. Bg5 {[%emt 0:05:02]} O-O {[%emt 0:02:23]} 12. O-O {[%emt 0:00:47]} h6 $146 {[%emt 0:07:26]} 13. Bh4 {[%emt 0:01:43]} Bf5 {[%emt 0:02:45]} 14. Nbd2 {[%emt 0:20:26]} Rfe8 {[%emt 0:05:42]} 15. Qd1 {[%emt 0:07:54]} a6 {[%emt 0:04:45]} 16. Ba4 {[%emt 0:02:24]} Rad8 {[%emt 0:06:23]} 17. Nd4 {[%emt 0:06:32]} Bg6 {[%emt 0:01:42]} 18. N2f3 {[%emt 0:08:06]} Ne4 {[%emt 0:06:07]} 19. Bxe7 {[%emt 0:01:00]} Rxe7 {[%emt 0:01:05]} 20. Bxc6 {[%emt 0:00:28]} bxc6 {[%emt 0:00:31]} 21. Qa4 {[%emt 0:00:09]} Rd6 {[%emt 0:06:43]} 22. Nc2 {[%emt 0:10:04]} (22. Nh4 $1 $11 {keeps the balance.}) 22... Nc5 {[%emt 0:09:30]} 23. Qa3 {[%emt 0:00:26]} Nd3 {[%emt 0:05:51]} ({Weaker is} 23... Bxc2 24. Qxc5 Be4 25. Nd2 $11) 24. Ne3 {[%emt 0:01:56]} Rf6 {[%emt 0:05:30]} 25. Nh4 {[%emt 0:05:44]} (25. Nd4 {was necessary.}) 25... Be4 {[%emt 0:00:29]} 26. Ng4 {[%emt 0:03:14]} Rfe6 {[%emt 0:00:24]} 27. Ne3 {[%emt 0:01:14]} Qe5 {[%emt 0:03:15]} 28. g3 {[%emt 0:03:47]} Qh5 {[%emt 0:03:40]} 29. Neg2 {[%emt 0:02:00]} Qe2 {[%emt 0:02:51]} 30. Qxa6 {[%emt 0:00:36]} g5 {[%emt 0:01:04]} ({Much less strong is} 30... Qxb2 31. Rab1 $17) 31. Rae1 {[%emt 0:00:19]} Qxb2 {[%emt 0:03:17]} ({Worse is} 31... Nxe1 32. Qxe2 Bxg2 33. Qg4 $14) 32. Rb1 $2 {[%emt 0:00:37]} (32. Rxe4 {is the only way for White.} dxe4 33. Nf5) 32... Qxc3 {[%emt 0:01:26]} 33. Rb3 {[%emt 0:00:15]} Qd2 $2 {[%emt 0:00:32]} (33... Qc4 34. Qa8+ Re8) 34. Nf3 {[%emt 0:00:13]} Bxf3 {[%emt 0:02:02]} 35. Rxd3 {[%emt 0:00:06]} Qe2 {[%emt 0:00:28]} 36. Re3 $19 {[%emt 0:00:40]} (36. Qa3 Be4 37. Rb3) 36... Qxa6 {[%emt 0:00:23]} 0-1